Cogmind - Beta 11.1 @@@ ROGUE MODE // 2022.05.14 @ 20:20:08 Player: laserbat Result: Destroyed by H-81 Overseer with Heavy Linear Accelerator Performance ------------- Evolutions (8) 4000 Regions Visited (13) 2600 Robots Destroyed (8) 40 Value Destroyed (183) 183 Prototype IDs (2) 40 Alien Tech Used (0) 0 Bonus (1200) 1200 TOTAL SCORE: 8063 Bonus ------- Pacifist 200 Entered DSFs 1000 Cogmind --------- Core Integrity 0/1450 Matter 89/300 Energy 98/100 System Corruption 1% Temperature Cool (0) Movement Core (50) Location -2/Research Parts ------- > --- POWER (1) -------- (None) > --- PROPULSION (6) --- (None) > --- UTILITY (14) ----- (None) > --- WEAPON (2) ------- (None) > --- INVENTORY (5) ---- Graphene Brace Shock Bomb Launcher Fusion Bomb Launcher Advanced Datajack Peak State ------------ > --- POWER ------------ (None) > --- PROPULSION ------- Electron Diverter Impulse Thruster Array > --- UTILITY ---------- Advanced Signal Interpreter System Shield > --- WEAPON ----------- (None) > --- INVENTORY -------- Graphene Brace Shock Bomb Launcher Fusion Bomb Launcher Advanced Datajack [Rating: 35] Favorites ----------- Power Micro Nuclear Core Power Core Micro Nuclear Core Propulsion Cesium-ion Thruster Treads Enhanced Armored Medium Treads Flight Unit Cesium-ion Thruster Utility Advanced Signal Interpreter Processor Advanced Signal Interpreter Hackware System Shield Protection Hardened Light Armor Plating Weapon Rocket Launcher Launcher Rocket Launcher Build | -11 -10 -9 -8 -7 -7 -6 -5 -5 -4 -4 -3 -3 -2 ------- Run | Scr Mat Mat Mat Fac DSF Fac Fac DSF Fac Ext Res Qua Res Slots Evolved 16 | . . 2 2 2 . 2 2 . 2 . 2 . 2 Power . | . . . . . . . . . . . . . . Propulsion 4 | . . 2 . 2 . . . . . . . . . Utility 12 | . . . 2 . . 2 2 . 2 . 2 . 2 Weapon . | . . . . . . . . . . . . . . Parts Attached 20 | . . 7 3 1 . . . . 4 . 3 1 1 Power 1 | . . . . . . . . . . . 1 . . Engine . | . . . . . . . . . . . . . . Core 1 | . . . . . . . . . . . 1 . . Reactor . | . . . . . . . . . . . . . . Propulsion 9 | . . 4 1 . . . . . 1 . 1 1 1 Treads 1 | . . . . . . . . . . . . . 1 Leg . | . . . . . . . . . . . . . . Wheel . | . . . . . . . . . . . . . . Hover . | . . . . . . . . . . . . . . Flight 8 | . . 4 1 . . . . . 1 . 1 1 . Utility 5 | . . 1 1 . . . . . 3 . . . . Device . | . . . . . . . . . . . . . . Storage . | . . . . . . . . . . . . . . Processor 1 | . . . . . . . . . 1 . . . . Hackware 2 | . . 1 . . . . . . 1 . . . . Protection 2 | . . . 1 . . . . . 1 . . . . Artifact . | . . . . . . . . . . . . . . Weapon 5 | . . 2 1 1 . . . . . . 1 . . Energy Gun . | . . . . . . . . . . . . . . Energy Cannon . | . . . . . . . . . . . . . . Ballistic Gun . | . . . . . . . . . . . . . . Ballistic Cannon . | . . . . . . . . . . . . . . Launcher 5 | . . 2 1 1 . . . . . . 1 . . Special Weapon . | . . . . . . . . . . . . . . Impact Weapon . | . . . . . . . . . . . . . . Slashing Weapon . | . . . . . . . . . . . . . . Piercing Weapon . | . . . . . . . . . . . . . . Special Melee Weapon . | . . . . . . . . . . . . . . Unidentified Prototypes 2 | . . . . . . . . . . . 1 . 1 Parts Lost 15 | . . . 5 1 . 1 . 1 . 2 1 2 2 Power 1 | . . . . . . . . . . . 1 . . Propulsion 8 | . . . 5 . . . . . . 1 . 2 . Utility 5 | . . . . . . 1 . 1 . 1 . . 2 Weapon 1 | . . . . 1 . . . . . . . . . Highest Loss Streak 6 | . . . 5 6 . 1 . 1 . 2 1 2 1 To Critical Strikes . | . . . . . . . . . . . . . . Average Slot Usage (%) 14 | . . 36 32 15 15 13 5 3 16 18 13 14 6 Flight 4 | . . 25 18 . . . . . 3 3 2 4 . Processor 2 | . . . . . . . . . 3 5 4 4 3 Hackware 4 | . . 7 9 7 7 6 5 3 5 5 4 4 . Protection 1 | . . . 3 7 7 6 . . 3 3 . . . Naked Turns 87 | . 29 20 . . . . . 11 8 . . . 19 Heaviest Build 12 | . . 4 4 3 3 3 . . 5 5 12 . . Greatest Support 24 | 3 3 20 14 3 3 3 3 3 7 7 8 24 3 Greatest Overweight (x) 1 | . . . . . . . . . . . 1 . . Average Overweight (x) . | . . . . . . . . . . . . . . Largest Inventory Capacity 5 | 5 5 5 5 5 5 5 5 5 5 5 5 5 5 Average Capacity 5 | 5 5 5 5 5 5 5 5 5 5 5 5 5 5 Most Carried 4 | 4 . 2 3 3 3 3 3 3 3 3 4 4 4 Average Carried 3 | 2 . . 2 2 3 3 3 3 2 3 3 4 4 Final Capacity 5 | 5 5 5 5 5 5 5 5 5 5 5 5 5 5 Final Carried 4 | . . 1 3 3 3 3 3 3 3 3 4 4 4 Class Distribution -------------------- 95% | Mutant 4% | Sprinter Dominant Class ---------------- Mutant | -10/Materials Sprinter | -9/Materials Sprinter | -8/Materials Mutant | -7/Factory Mutant | -7/DSF Mutant | -6/Factory Mutant | -5/Factory Mutant | -5/DSF Mutant | -4/Factory Mutant | -4/Extension Mutant | -3/Research Mutant | -3/Quarantine Mutant | -2/Research Resources | -11 -10 -9 -8 -7 -7 -6 -5 -5 -4 -4 -3 -3 -2 ----------- Run | Scr Mat Mat Mat Fac DSF Fac Fac DSF Fac Ext Res Qua Res Matter Collected 240 | 166 . . 67 . . . . 7 . . . . . Remotely . | . . . . . . . . . . . . . . Salvage Created 81 | . . 61 20 . . . . . . . . . . Parts 8 | . . 5 3 . . . . . . . . . . Haulers Intercepted . | . . . . . . . . . . . . . . Recyclers Shooed 1 | . . . 1 . . . . . . . . . . Parts Field Recycled . | . . . . . . . . . . . . . . Retrieved Matter . | . . . . . . . . . . . . . . Parts Self-Destructed . | . . . . . . . . . . . . . . Prevented . | . . . . . . . . . . . . . . Kills | -11 -10 -9 -8 -7 -7 -6 -5 -5 -4 -4 -3 -3 -2 ------- Run | Scr Mat Mat Mat Fac DSF Fac Fac DSF Fac Ext Res Qua Res Combat Hostiles Destroyed 5 | . . 2 3 . . . . . . . . . . AOE 5 | . . 2 3 . . . . . . . . . . Classes Destroyed 5 | . . 3 2 . . . . . . . . . . Worker 1 | . . 1 . . . . . . . . . . . Builder 1 | . . . 1 . . . . . . . . . . Operator 1 | . . 1 . . . . . . . . . . . Swarmer 3 | . . . 3 . . . . . . . . . . Grunt 2 | . . 2 . . . . . . . . . . . Best Kill Streak 4 | . . 3 4 . . . . . . . . . . Combat Bots Only 3 | . . 2 3 . . . . . . . . . . Max Kills in Single Turn 2 | . . 1 2 . . . . . . . . . . Gunslinging . | . . . . . . . . . . . . . . Exploded 2 | . . 1 2 . . . . . . . . . . Melee . | . . . . . . . . . . . . . . Uniques/NPCs Destroyed . | . . . . . . . . . . . . . . Combat | -11 -10 -9 -8 -7 -7 -6 -5 -5 -4 -4 -3 -3 -2 -------- Run | Scr Mat Mat Mat Fac DSF Fac Fac DSF Fac Ext Res Qua Res Damage Taken 4656 | . 30 158 307 55 112 76 . 73 250 464 573 588 1970 Core 3236 | . 30 124 112 12 22 50 . 73 112 368 458 363 1512 Absorbed by Shields 19 | . . . . 19 . . . . . . . . . Core Remaining (%) 79 | 100 88 69 79 . 95 94 . 92 . 58 . 36 . Volleys Fired 12 | . . 6 3 2 . . . . . . 1 . . Largest 1 | . . 1 1 1 . . . . . . 1 . . Hottest 52 | . . 33 33 33 . . . . . . 52 . . Shots Fired 12 | . . 6 3 2 . . . . . . 1 . . Gun . | . . . . . . . . . . . . . . Cannon . | . . . . . . . . . . . . . . Launcher 12 | . . 6 3 2 . . . . . . 1 . . Special . | . . . . . . . . . . . . . . Kinetic . | . . . . . . . . . . . . . . Thermal . | . . . . . . . . . . . . . . Explosive 12 | . . 6 3 2 . . . . . . 1 . . Electromagnetic . | . . . . . . . . . . . . . . Robot Hit Streak 1 | . . 1 . 1 . . . . . . . . . Robot Miss Streak 2 | . . . 2 . . . . . . . . . . Penetration Max . | . . . . . . . . . . . . . . Secondary Targets . | . . . . . . . . . . . . . . Shots Hit Robots 2 | . . 1 . 1 . . . . . . . . . Core Hits 10 | . . 5 4 . . . . . . . . . 1 Critical Kills . | . . . . . . . . . . . . . . Critical Parts Destroyed . | . . . . . . . . . . . . . . Critical Strikes . | . . . . . . . . . . . . . . Melee Attacks . | . . . . . . . . . . . . . . Impact . | . . . . . . . . . . . . . . Slashing . | . . . . . . . . . . . . . . Piercing . | . . . . . . . . . . . . . . Sneak Attacks . | . . . . . . . . . . . . . . Combat Hostiles . | . . . . . . . . . . . . . . Follow-up Attacks . | . . . . . . . . . . . . . . Damage Inflicted 560 | . 17 292 190 31 . . . . . . . 11 19 Guns . | . . . . . . . . . . . . . . Cannons . | . . . . . . . . . . . . . . Explosions 513 | . . 292 190 31 . . . . . . . . . Melee . | . . . . . . . . . . . . . . Ramming 47 | . 17 . . . . . . . . . . 11 19 Kinetic . | . . . . . . . . . . . . . . Thermal 78 | . . 78 . . . . . . . . . . . Explosive 435 | . . 214 190 31 . . . . . . . . . Electromagnetic . | . . . . . . . . . . . . . . Impact . | . . . . . . . . . . . . . . Slashing . | . . . . . . . . . . . . . . Piercing . | . . . . . . . . . . . . . . Highest Corruption 3 | . . . . . . . . . . . . 3 1 Average Corruption 1 | . . . . . . . . . . . . 2 1 Corruption Purged . | . . . . . . . . . . . . . . Corruption Blocked . | . . . . . . . . . . . . . . Effects 3 | . . . . . . . . . . . . 1 2 Matter Fused 1 | . . . . . . . . . . . . 1 . Data Loss (minor) 1 | . . . . . . . . . . . . . 1 Data Loss (major) 1 | . . . . . . . . . . . . . 1 Overload Shots . | . . . . . . . . . . . . . . Overflow Damage 158 | . . 99 23 36 . . . . . . . . . Projectiles . | . . . . . . . . . . . . . . Explosions 158 | . . 99 23 36 . . . . . . . . . Melee . | . . . . . . . . . . . . . . Knockbacks . | . . . . . . . . . . . . . . Impact . | . . . . . . . . . . . . . . Kinetic . | . . . . . . . . . . . . . . Secondary . | . . . . . . . . . . . . . . Self-Inflicted Damage 243 | . 8 65 61 75 . . . . . . 22 5 7 Shots 6 | . . 1 2 2 . . . . . . 1 . . Rammed 9 | . 2 . . . . . . . . . . 1 6 Targets Rammed 9 | . 2 . . . . . . . . . . 1 6 Kicked . | . . . . . . . . . . . . . . Crushed . | . . . . . . . . . . . . . . Highest Temperature 14 | . . 14 5 . . . . . . . . . . Average Temperature 8 | . . 10 5 . . . . . . . . . . Received Heat Transfer 471 | . 12 69 99 . 18 24 . . 27 36 . 42 144 Siege Activations . | . . . . . . . . . . . . . . Robots Corrupted . | . . . . . . . . . . . . . . Combat Hostiles . | . . . . . . . . . . . . . . Parts Fried . | . . . . . . . . . . . . . . Impact Corruptions . | . . . . . . . . . . . . . . Robots Melted . | . . . . . . . . . . . . . . Combat Hostiles . | . . . . . . . . . . . . . . Parts Melted . | . . . . . . . . . . . . . . Heat Transferred 50 | . . 50 . . . . . . . . . . . Parts Sabotaged . | . . . . . . . . . . . . . . Parts Stolen . | . . . . . . . . . . . . . . Parts Stripped . | . . . . . . . . . . . . . . Power Chain Reactions . | . . . . . . . . . . . . . . Missiles Intercepted . | . . . . . . . . . . . . . . Alert | -11 -10 -9 -8 -7 -7 -6 -5 -5 -4 -4 -3 -3 -2 ------- Run | Scr Mat Mat Mat Fac DSF Fac Fac DSF Fac Ext Res Qua Res Peak Influence 348 | . . 295 259 130 90 61 24 16 92 44 281 269 348 Initial 157 | . . . 124 117 90 46 24 16 2 44 20 157 150 Average 135 | . . 146 214 122 90 51 24 11 33 43 107 214 223 Maximum Alert Level 1 | . . 1 1 . . . . . . . 1 1 1 Low Security (%) 72 | 100 100 78 29 100 100 100 100 100 100 100 90 42 40 Level 1 27 | . . 21 70 . . . . . . . 9 57 59 Level 2 . | . . . . . . . . . . . . . . Level 3 . | . . . . . . . . . . . . . . Level 4 . | . . . . . . . . . . . . . . Level 5 . | . . . . . . . . . . . . . . High Security . | . . . . . . . . . . . . . . Max Security . | . . . . . . . . . . . . . . Squads Dispatched 6 | . . 1 . . . . . . . . 3 1 1 Investigation 2 | . . . . . . . . . . . 1 1 . Extermination . | . . . . . . . . . . . . . . Reinforcement 4 | . . 1 . . . . . . . . 2 . 1 Assault . | . . . . . . . . . . . . . . Garrison . | . . . . . . . . . . . . . . Intercept . | . . . . . . . . . . . . . . Searches Triggered . | . . . . . . . . . . . . . . Construction Impeded . | . . . . . . . . . . . . . . Haulers Reinforced . | . . . . . . . . . . . . . . Active Scanning Responses . | . . . . . . . . . . . . . . Cargo Convoy Interrupts . | . . . . . . . . . . . . . . Stealth | -11 -10 -9 -8 -7 -7 -6 -5 -5 -4 -4 -3 -3 -2 --------- Run | Scr Mat Mat Mat Fac DSF Fac Fac DSF Fac Ext Res Qua Res Distress Signals 6 | . . 1 3 . . . . . . . 1 . 1 Communications Jammed . | . . . . . . . . . . . . . . Distress Signals . | . . . . . . . . . . . . . . Times Spotted 93 | . 1 7 17 . 2 1 . 1 7 4 19 9 25 Peak Tracking Total 15 | . 1 6 15 . 2 1 . 1 7 4 13 8 13 Tactical Retreats 9 | . . . 1 . . . . . 1 . 2 2 3 Traps | -11 -10 -9 -8 -7 -7 -6 -5 -5 -4 -4 -3 -3 -2 ------- Run | Scr Mat Mat Mat Fac DSF Fac Fac DSF Fac Ext Res Qua Res Traps Triggered 5 | . . . . 1 . . . . . . 2 . 2 Indirectly . | . . . . . . . . . . . . . . Trap Hack Attempts . | . . . . . . . . . . . . . . Triggered . | . . . . . . . . . . . . . . Disarmed . | . . . . . . . . . . . . . . Reprogrammed . | . . . . . . . . . . . . . . Reused . | . . . . . . . . . . . . . . Traps Extracted . | . . . . . . . . . . . . . . Installed . | . . . . . . . . . . . . . . Triggered . | . . . . . . . . . . . . . . Machines | -11 -10 -9 -8 -7 -7 -6 -5 -5 -4 -4 -3 -3 -2 ---------- Run | Scr Mat Mat Mat Fac DSF Fac Fac DSF Fac Ext Res Qua Res Machines Disabled 5 | . . 2 2 . . . . . . . 1 . . Max in Single Turn 1 | . . 1 1 . . . . . . . 1 . . Machines Sabotaged . | . . . . . . . . . . . . . . Garrisons Compromised . | . . . . . . . . . . . . . . Overloaded Fab Kills . | . . . . . . . . . . . . . . Hacking | -11 -10 -9 -8 -7 -7 -6 -5 -5 -4 -4 -3 -3 -2 --------- Run | Scr Mat Mat Mat Fac DSF Fac Fac DSF Fac Ext Res Qua Res Machines Accessed 13 | . . 1 1 1 . . 1 . . 1 4 2 2 Terminals 13 | . . 1 1 1 . . 1 . . 1 4 2 2 Fabricators . | . . . . . . . . . . . . . . Repair Stations . | . . . . . . . . . . . . . . Recycling Units . | . . . . . . . . . . . . . . Scanalyzers . | . . . . . . . . . . . . . . Garrison Access . | . . . . . . . . . . . . . . Total Hacks 28 | . . 2 1 2 . . 2 . . 1 13 3 4 Successful 13 | . . 2 1 1 . . 1 . . 1 4 1 2 Failed 15 | . . . . 1 . . 1 . . . 9 2 2 Catastrophic 5 | . . . . . . . . . . . 3 2 . Database Lockouts . | . . . . . . . . . . . . . . Manual 9 | . . 2 1 . . . . . . . 2 . 4 Terminals 28 | . . 2 1 2 . . 2 . . 1 13 3 4 Fabricators . | . . . . . . . . . . . . . . Repair Stations . | . . . . . . . . . . . . . . Recycling Units . | . . . . . . . . . . . . . . Scanalyzers . | . . . . . . . . . . . . . . Garrison Access . | . . . . . . . . . . . . . . Terminal Hacks 10 | . . 1 1 1 . . 1 . . 1 3 1 1 Open Door 2 | . . . . . . . . . . 1 1 . . Open DSF 3 | . . . . 1 . . 1 . . . 1 . . Level Access Points 4 | . . 1 1 . . . . . . . . 1 1 Terminal Index 1 | . . . . . . . . . . . 1 . . Fabricator Hacks . | . . . . . . . . . . . . . . Repair Station Hacks . | . . . . . . . . . . . . . . Recycling Unit Hacks . | . . . . . . . . . . . . . . Scanalyzer . | . . . . . . . . . . . . . . Garrison Access Hacks . | . . . . . . . . . . . . . . Unauthorized Hacks 3 | . . 1 . . . . . . . . 1 . 1 Terminals 3 | . . 1 . . . . . . . . 1 . 1 Botnet 3 | . . 1 . . . . . . . . 1 . 1 Fabricators . | . . . . . . . . . . . . . . Repair Stations . | . . . . . . . . . . . . . . Recycling Units . | . . . . . . . . . . . . . . Scanalyzers . | . . . . . . . . . . . . . . Garrison Access . | . . . . . . . . . . . . . . Data Cores Recovered . | . . . . . . . . . . . . . . Used . | . . . . . . . . . . . . . . Hacking Detections 7 | . . . . . . . 1 . . . 3 2 1 Full Trace Events 1 | . . . . . . . . . . . . 1 . Feedback Events . | . . . . . . . . . . . . . . Feedback Blocked . | . . . . . . . . . . . . . . Robot Schematics Acquired . | . . . . . . . . . . . . . . Robots Built . | . . . . . . . . . . . . . . Authchips . | . . . . . . . . . . . . . . Time . | . . . . . . . . . . . . . . Total Robot Build Rating . | . . . . . . . . . . . . . . Part Schematics Acquired . | . . . . . . . . . . . . . . Parts Built . | . . . . . . . . . . . . . . Authchips . | . . . . . . . . . . . . . . Time . | . . . . . . . . . . . . . . Total Part Build Rating . | . . . . . . . . . . . . . . Parts Repaired . | . . . . . . . . . . . . . . Time . | . . . . . . . . . . . . . . Parts Recycled . | . . . . . . . . . . . . . . Recycled Matter . | . . . . . . . . . . . . . . Retrieved Matter . | . . . . . . . . . . . . . . Retrieved Components . | . . . . . . . . . . . . . . Parts Scanalyzed . | . . . . . . . . . . . . . . Part Schematics Acquired . | . . . . . . . . . . . . . . Parts Damaged . | . . . . . . . . . . . . . . Bothacking | -11 -10 -9 -8 -7 -7 -6 -5 -5 -4 -4 -3 -3 -2 ------------ Run | Scr Mat Mat Mat Fac DSF Fac Fac DSF Fac Ext Res Qua Res Used RIF Installer . | . . . . . . . . . . . . . . Robots Hacked . | . . . . . . . . . . . . . . Non-combat . | . . . . . . . . . . . . . . Combat . | . . . . . . . . . . . . . . Robot Hacks Applied . | . . . . . . . . . . . . . . Relay Couplers Released . | . . . . . . . . . . . . . . Fabnet Peak Effective % . | . . . . . . . . . . . . . . Robots Rewired . | . . . . . . . . . . . . . . Allies Hacked . | . . . . . . . . . . . . . . Hacks Repelled . | . . . . . . . . . . . . . . Allies | -11 -10 -9 -8 -7 -7 -6 -5 -5 -4 -4 -3 -3 -2 -------- Run | Scr Mat Mat Mat Fac DSF Fac Fac DSF Fac Ext Res Qua Res Total Allies . | . . . . . . . . . . . . . . Largest Group . | . . . . . . . . . . . . . . Highest-Rated Group . | . . . . . . . . . . . . . . Highest-Rated Ally . | . . . . . . . . . . . . . . Total Orders . | . . . . . . . . . . . . . . Ally Attacks . | . . . . . . . . . . . . . . Total Damage . | . . . . . . . . . . . . . . Kills . | . . . . . . . . . . . . . . Allies Corrupted . | . . . . . . . . . . . . . . Allies Melted . | . . . . . . . . . . . . . . Intel | -11 -10 -9 -8 -7 -7 -6 -5 -5 -4 -4 -3 -3 -2 ------- Run | Scr Mat Mat Mat Fac DSF Fac Fac DSF Fac Ext Res Qua Res Robot Analysis Total . | . . . . . . . . . . . . . . Derelict Logs Recovered . | . . . . . . . . . . . . . . Drone Launches . | . . . . . . . . . . . . . . Drone Recoveries . | . . . . . . . . . . . . . . Exploration | -11 -10 -9 -8 -7 -7 -6 -5 -5 -4 -4 -3 -3 -2 ------------- Run | Scr Mat Mat Mat Fac DSF Fac Fac DSF Fac Ext Res Qua Res Turns Passed 943 | 3 29 73 51 40 28 13 17 26 111 40 183 145 184 Spaces Moved 2006 | 1 55 132 107 67 56 25 34 52 247 97 427 353 353 Core 1046 | 1 55 45 18 67 56 25 34 52 58 14 167 101 353 Treads . | . . . . . . . . . . . . . . Legs . | . . . . . . . . . . . . . . Wheels . | . . . . . . . . . . . . . . Hover . | . . . . . . . . . . . . . . Flight 960 | . . 87 89 . . . . . 189 83 260 252 . Fastest Speed 26 | 50 50 26 30 50 50 50 50 50 40 40 35 35 50 Average Speed 43 | 50 50 37 35 50 50 50 50 50 42 41 41 40 50 Slowest Speed 95 | 50 50 50 50 50 50 50 50 50 50 50 95 50 50 Overloaded Moves . | . . . . . . . . . . . . . . Propulsion Burnouts . | . . . . . . . . . . . . . . Robots Hopped 9 | . . 1 1 . . . . . 4 . 2 1 . Cave-ins Triggered . | . . . . . . . . . . . . . . Exploration Rate (%) 20 | 1 14 18 22 2 57 2 1 80 8 25 16 34 13 Regions Visited 13 Branch Regions 2 Pre-discovered Areas . | . . . . . . . . . . . . . . Known Exits Taken 8 | . . 1 1 1 . . 1 . 1 1 1 1 . Unknown Exits Taken 3 | 1 1 . . . . 1 . . . . . . . Scrap Searched . | . . . . . . . . . . . . . . Spaces Dug 6 | . . . . 6 . . . . . . . . . Terrain Destroyed 161 | . . 106 12 18 . . . . . . 25 . . Melee . | . . . . . . . . . . . . . . Projectile . | . . . . . . . . . . . . . . AOE 161 | . . 106 12 18 . . . . . . 25 . . Terrain Rammed . | . . . . . . . . . . . . . . Walls Destroyed . | . . . . . . . . . . . . . . Machines Disabled . | . . . . . . . . . . . . . . Actions | -11 -10 -9 -8 -7 -7 -6 -5 -5 -4 -4 -3 -3 -2 --------- Run | Scr Mat Mat Mat Fac DSF Fac Fac DSF Fac Ext Res Qua Res Total 2041 | 5 56 146 114 70 55 24 33 51 247 96 431 353 360 Wait . | . . . . . . . . . . . . . . Move 1976 | . 55 129 104 66 55 24 33 51 238 96 422 350 353 Hop 9 | . . 1 1 . . . . . 4 . 2 1 . Pick Up 7 | . . 2 1 1 . . . . 1 . 2 . . Fast Attach 13 | . . 5 2 . . . . . 3 . 1 1 1 Attach 7 | . . 2 1 1 . . . . 1 . 2 . . Detach 4 | . . 1 2 . . . . . . . 1 . . Swap . | . . . . . . . . . . . . . . Drop 5 | 5 . . . . . . . . . . . . . Fire 12 | . . 6 3 2 . . . . . . 1 . . Melee . | . . . . . . . . . . . . . . Ram 8 | . 1 . . . . . . . . . . 1 6 Kick . | . . . . . . . . . . . . . . Crush . | . . . . . . . . . . . . . . Escape Stasis . | . . . . . . . . . . . . . . Rewire . | . . . . . . . . . . . . . . Trap . | . . . . . . . . . . . . . . Miscellaneous . | . . . . . . . . . . . . . . Route ------- -11/Scrapyard -10/Materials -9/Materials (discovered 4 exits: *Mat x3 / [*Sto]) -8/Materials (discovered 3 exits: *Fac x3) -7/Factory -7/DSF -6/Factory -5/Factory -5/DSF -4/Factory -4/Extension -3/Research -3/Quarantine -2/Research (discovered 3 exits: *Acc x3) History --------- Turn | Location | Event 1 | -11/Scrapyard | Released all parts (6) 4 | -11/Scrapyard | Discovered new exit (range 0) 4 | -11/Scrapyard | Entered Materials 30 | -10/Materials | Discovered new exit (range 5) 33 | -10/Materials | Entered another Materials area 33 | -9/Materials | Evolved 2 slots: Propulsion x2 45 | -9/Materials | Identified exit to Materials 75 | -9/Materials | Discovered new exit (range 10) 106 | -9/Materials | Entered another Materials area 106 | -8/Materials | Evolved 2 slots: Utility x2 130 | -8/Materials | Identified exit to Factory 157 | -8/Materials | Entered Factory 157 | -7/Factory | Evolved 2 slots: Propulsion x2 196 | -7/Factory | Identified exit to DSF 197 | -7/Factory | Entered DSF 204 | -7/DSF | Lost 6 parts (5n1w) 219 | -7/DSF | Discovered new exit (range 12) 220 | -7/DSF | Additional patrols routed to DSF 225 | -7/DSF | Entered Factory 225 | -6/Factory | Evolved 2 slots: Utility x2 230 | -6/Factory | Discovered new exit (range 16) 238 | -6/Factory | Entered another Factory area 238 | -5/Factory | Evolved 2 slots: Utility x2 255 | -5/Factory | Identified exit to DSF 255 | -5/Factory | Entered DSF 274 | -5/DSF | Discovered new exit (range 14) 276 | -5/DSF | Additional patrols routed to DSF 281 | -5/DSF | Entered Factory 281 | -4/Factory | Evolved 2 slots: Utility x2 388 | -4/Factory | Discovered new exit (range 12) 392 | -4/Factory | Identified exit to Extension 392 | -4/Factory | Entered Extension 399 | -4/Extension | Build established: Mutant 423 | -4/Extension | Spotted B-86 Titan 425 | -4/Extension | Spotted B-86 Titan 431 | -4/Extension | Discovered new exit (range 3) 431 | -4/Extension | Identified exit to Research 432 | -4/Extension | Entered Research 432 | -3/Research | Evolved 2 slots: Utility x2 440 | -3/Research | Found Fusion Bomb Launcher 613 | -3/Research | Discovered new exit (range 9) 615 | -3/Research | Identified exit to Quarantine 615 | -3/Research | Entered Quarantine 652 | -3/Quarantine | Identified exit to Research 706 | -3/Quarantine | Core integrity fell below 50% 760 | -3/Quarantine | Entered Research 760 | -2/Research | Evolved 2 slots: Utility x2 769 | -2/Research | Spotted B-90 Cyclops 871 | -2/Research | Spotted B-90 Cyclops 921 | -2/Research | Identified exit to Access 926 | -2/Research | Core integrity fell below 50% 935 | -2/Research | Core integrity fell below 20% 944 | -2/Research | Destroyed by H-81 Overseer with Heavy Linear Accelerator Last Messages --------------- 00922_ Penetrated by Slug. 00922_ Adv. Signal Interpreter destroyed. 00923_ Slammed into Y-72 Warden. 00925_ Triggered Blade Trap. 00925_ Massive razor-sharp blades shoot up from within the floor. 00925_ Enh. Armored Medium Treads severed. 00925_ Penetrated by Slug. 00926_ Slammed into Y-72 Warden. 00929_ Penetrated by Slug. 00931_ System corrupted: Substantial component data lost. 00931_ B-90 Cyclops activates siege mode. 00932_ Penetrated by Slug. 00934_ U-05 Engineer lays Concrete. 00935_ Slug penetrates Meson Extractor. 00935_ Penetrated by Slug. 00935_ Slug penetrates Door. 00936_ Slug penetrates Wall. 00936_ Recycling Unit disabled. 00937_ Enh. Force Lance tumbles out of recycling unit. 00942_ Knocked back. Map ----- +----------------------------------------------------+ | | | | | | | | | | | | | | | | | ?????????????????????????????????????????? | | ?????????????????????????????????????????? | | ?????????????????????????????????????????? | | ?????????????????????????????????????????? | | ?????????????????????????????????????????? | | ?????????????????????????????????????????? | | ?????????????????????????????????????????? | | ?????????????????????????????????????????? | | ??????????????????????????????????####???? | | ??????????????????????????????????? ??# | | ?????????????????????????????? #???? ## | | ?????????????????????????????? #??????? / | | ????????????#####???????????? +?????????# | | ????????????# ??????????? #?????????# | | ????????????# ?????????? #?????????# | | ????????????# H ###+###### #?????????# | | ????????????# #?????????# | | ????????????# @ #?????????# | | ????????????# % #?????????# | | ????????????# % #?????????# | | ????????????######## ###########??????# | | ???????????????????# # ! #??????# | | ???????????????????# # ######## | | ???????????????????# # # # | | ???????????????????# # # # | | ???????????????????# # ** # T # | | ???????????????????# # * ??# # | | ???????????????????# # ???# | | ???????????????????# # ????# # | | ???????????????????# ### ###### ####### | | ???????????????????+ | | ???????????????????# | | ???????????????????# | | ???????????????????# """" | | ???????????????????# ""Y" / " | | ???????????????????# "" | | ???????????????????# "" | | ???????????????????# | | ???????????????????# | | ???????????????????# | | ???????????????????# [ | | ???????????????????# =%####+##### | +----------------------------------------------------+ Best States ------------- Heat Dissipation 49 Energy Generation 15 Energy Capacity 150 Matter Stores 270 Matter Capacity 300 Sight Range 16 Terrain Scan Density 10 Armor Coverage 150 Evasion (%) 64 Recoil Reduction 1 Offensive Hacking 10 Defensive Hacking 10 Item Schematics ----------------- None Robot Schematics ------------------ None Fabricated ------------ Nothing Alien Tech Used ----------------- None Achievements -------------- None Challenges ------------ None Game ------ Seed LinearMicroTerrabomb Manual? 0 Play Time 00:19:02 Cumulative 259.7 hours Start 2022.05.14 @ 20:04:07 End 2022.05.14 @ 20:20:08 Sessions 1 Manual Loads 0 Difficulty Rogue Special Mode None Game No. 424 Rogue 421 Adventurer 0 Explorer 3 Win Type - Total 9 Types 9/0/0/0/0/0/0/0/0 Lore% 71 Gallery% 75 Achievement% 63 Wizard Run 0 Options --------- ASCII 1 Keyboard 1 Movement Vi Keybinds 0 Fullscreen 1 Font 18/SmallcapsGlow Map View 76x50 Tactical HUD 1 Map Filters NONE Filters NONE Steam 1 RUN: 84e0fed9-d9bd-4402-b5e1-a795ff27f580